Workbook

Sheet 月总结和月计划
A1: XXX公司 （成大事者，不拘小“结”）
B3: 天猫-XXX旗舰店---2016年6月月度工作计划 | J3: 天猫-xxxx旗舰店---2015年5月月度工作 总结
A4: 序号 | B4: 店铺 | C4: 6月1日——6月30日 | F4: 预计销售 | G4: 成交人数 | H4: 客单价 | I4: 费用占比 | J4: 5月1日——5月30日 | N4: 实际销售 | O4: 成交人数 | P4: 客单价 | Q4: 费用占比(实际）
C5: 项目 | D5: 费用预计 | E5: 特殊备注 | J5: 项目 | K5: 申请费用 | L5: 实际费用 | M5: 费用使用率
A6: 1 | B6: xxxx旗舰店 有其它费用，直接插入行 | C6: 直通车推广费用 | D6: 55000 | F6: 1208750 | G6: =F6/H6 -> 29481.70732 | H6: 41 | I6: =D12/F6 -> 0.06122026887 | J6: 直通车推广费用 | K6: 50000 | L6: 50254.5 | M6: =L6/K6 -> 1.00509 | N6: 2029615.98 | O6: 51328 | P6: 39.54 | Q6: =L12/N6 -> 0.02896813022
C7: 钻展 聚划算使用 | D7: 10000 | J7: 钻展 | K7: 10000 | L7: 2292.68 | M7: 0.229268
C8: 售后费用 | D8: 3500 | J8: 售后费用 | K8: 3000 | L8: 1618.2 | M8: 0.5394
C9: xx佣金 | D9: 0 | J9: 刷单佣金 | K9: 0 | L9: 0
C10: 营销返现费用 | D10: 500 | J10: 营销返现费用 | K10: 2000 | L10: 377.8 | M10: 0.1889
C11: 短信费用 | D11: 5000 | J11: 短信费用 | K11: 5000 | L11: 4251 | M11: 0.8502
C12: 费用预估消耗 | D12: =SUM(D6:D11) -> 74000 | J12: 费用总和 | K12: =SUM(K6:K11) -> 70000 | L12: =SUM(L6:L11) -> 58794.18 | M12: 0.8399168571
C13: 资金申请 | D13: =SUM(D6:E11) -> 74000
A14: 2 | C14: 6月01日-6月30日工作安排 | D14: 第一周 | E14: 第二周 | F14: 第三周 | G14: 第四周 | H14: 费用/流量/销售额合计 | J14: 根据公司实际实情，可以是左边的数据进行核对，亦可以是对这个月和下个月的展望！或者建议，意见！
A15: 常规流量配比 | B15: 直通车 | C15: 周费用 | D15: 10000 | E15: 10000 | F15: 13000 | G15: 13000 | H15: =D15+E15+F15+G15 -> 46000
C16: 流量 | D16: =D15/D17 -> 5555.555556 | E16: 5263.157895 | F16: 6842.105263 | G16: 7222.222222 | H16: 24883.04094
C17: CPC点击费用 | D17: 1.8 | E17: 1.9 | F17: 1.9 | G17: 1.8
C18: ROI | D18: 1.2 | E18: 1.2 | F18: 1.2 | G18: 1.2
C19: 销售额 | D19: =(D15+E15+F15+G15)*1.2 -> 55200 | H19: 55200
B20: 钻展 | C20: 周费用 | D20: 0 | E20: 0 | F20: 0 | G20: 0
C21: 流量 | D21: 0 | E21: 0 | F21: =F20/F22 -> 0 | G21: 0 | H21: =D21+E21+F21+G21 -> 0
C22: CPC点击费用 | D22: 0 | E22: 0 | F22: 0.8 | G22: 0.8
C23: ROI | D23: 0 | E23: 0 | F23: 1 | G23: 1
C24: 销售额 | D24: =(D20+E20+F20+G20)*1 -> 0 | H24: 0
B25: 淘宝客 | C25: 日均流量 | D25: 200 | E25: 200 | F25: 200 | G25: 300 | H25: 900
C26: 客单价 | D26: 50 | E26: 50 | F26: 50 | G26: 50
C27: 日均销售额 | D27: 500 | E27: 280 | F27: 280 | G27: 280
C28: 月佣金比例 | D28: 0.07 | E28: 0.07 | F28: 0.07 | G28: 0.07 | H28: =D28+E28+F28+G28 -> 0.28
C29: 月销售额 | D29: 35000 | H29: 35000
B30: 自然搜索 | C30: 日均流量 | D30: 8000 | E30: 8000 | F30: 8000 | G30: 10000 | H30: 34000
C31: 转化率 | D31: 0.09 | E31: 0.11 | F31: 0.115 | G31: 0.09
C32: 客单价 | D32: 47 | E32: 47 | F32: 47 | G32: 47
C33: 日均销售额 | D33: =D30*D31*D32 -> 33840 | E33: 41360 | F33: 43240 | G33: 42300
C34: 月销售额 | D34: =(D33+E33+F33+G33)*7 -> 1125180 | H34: =D34+E34+F34+G34 -> 1125180
B35: 销售额合计 | D35: =D19+D24+D29+D34 -> 1215380 | E35: 0 | F35: 0 | G35: 0
A36: 第一周工作重点 （6.1-6.7） 记重点，不记流水账，流水账自行登记 | C36: 1.66大促活动 2.淘抢购、淘金币、聚划算 6月份的计划 | J36: 对应周总结，简明扼要
A37: 第二周工作重点 （6.08-6.14） | C37: 1.6月14日 淘抢购品牌抢活动 2.618大促活动 3. | J37: 对应周总结，简明扼要
A38: 第三周工作重点 （6.15-6.22） | C38: 1.聚划算品牌团的工作安排 2.做好下个月淘金币、聚划算、淘抢购活动的准备 | J38: 对应周总结，简明扼要
A39: 第四周工作重点 （6.23-6.30） | C39: 1.淘抢购单品的活动 2.报名店铺其他活动 | J39: 对应周总结，简明扼要

Sheet 竞争对手登记表
B1: 空调竞争对手产品聚划算统计
A2: 开始时间 | B2: 持续时间 | C2: 序号 | D2: 产品 | E2: 聚划算价 | F2: 一口价 | G2: 准备库存数 | H2: 销售时间中间节点 | I2: 节点销量 | J2: 最终销量 | K2: 店铺名称 | L2: 宣传点 | M2: 链接地址
A3: 2014-05-17 | C3: 1 | D3: 海尔 | E3: 2999 | F3: 3999 | G3: =844+19 -> 863 | H3: 2014-05-18T15:25:00 | I3: 844 | J3: 1017 | K3: 海尔官方旗舰店 | L3: 海尔大1.5匹变频空调 | M3: http://detail.ju.taobao.com/home.htm?spm=608.7117297.all1.20.m7oATU&item_id=37875799428&id=10000002723770
C4: 2000
C5: 2001 | F5: 2016年版的《年度运营计划表》，被人挖坑，说没有竞争对手表等！ 也很多商家，向我索要“直通车”“钻展”“淘宝客”“售后登记分析表”“运营数据日报表”“周报表”“月报表”等等所有的表格…… 这里特别说明一下： 如果亲稍微用心，这些表格都是可以轻易的自已制作出来。 并抓住重要的数据去梳理！ 比如有了这个登记表，你可以从各种纬度去分析了解对手！
C6: 2002
C7: 2003
C8: 2004
C9: 2005
C10: 2006
C11: 2007

Sheet 单品打造计划
B1: 目标 | C1: xxxxxxxxx | F1: 理想成本 | R1: 理想利润
B2: 时间 | C2: xxxxxxxx
B3: 营销简案 | C3: 包数 | D3: 单包价目前成本 | E3: 成本 | F3: 理想包价 | G3: 理想成本 | H3: 运费 | I3: 猫点扣费 | J3: 支付宝成交金额 | K3: 送与各种金额 | L3: 实收销售金额 | M3: 总销售额 | N3: 售卖单包价 | O3: 利润 | P3: 预估数量 | Q3: 盈亏 | R3: 利润 | S3: 数量 | T3: 盈亏 | U3: 广告天数 | V3: 日费用 | W3: 营销广告总费 | X3: 备注
A4: 第一个月 | B4: 正常送试用装 | C4: 64 | D4: 0.8 | E4: =C4*D4 -> 51.2 | F4: 0.7 | G4: =C4*F4 -> 44.8 | H4: 7 | I4: =J4*0.025 -> 1.95 | J4: 78 | K4: =4*D4 -> 3.2 | L4: =J4-K4 -> 74.8 | M4: =J4*P4 -> 0 | N4: =L4/C4 -> 1.16875 | O4: =L4-H4-E4-I4 -> 14.65 | Q4: =P4*O4 -> 0 | R4: =L4-G4-H4-I4 -> 21.05 | T4: =S4*R4 -> 0 | X4: 最终目销销售顶点价格
B5: 买一送一 | C5: 64 | D5: 0.8 | E5: 51.2 | F5: 0.7 | G5: 44.8 | H5: 14 | I5: 1.95 | J5: 78 | K5: =64*D5 -> 51.2 | L5: 26.8 | M5: 0 | N5: 0.41875 | O5: -40.35 | Q5: 0 | R5: -33.95 | T5: 0
B6: 半价 | C6: 64 | D6: 0.8 | E6: 51.2 | F6: 0.7 | G6: 44.8 | H6: 7 | I6: 1.95 | J6: 78 | K6: =J6/2 -> 39 | L6: 39 | M6: 187200 | N6: 0.609375 | O6: -21.15 | P6: 2400 | Q6: -50760 | R6: -14.75 | S6: 2400 | T6: -35400 | U6: 15 | V6: 1000 | W6: =U6*V6 -> 15000
B7: 0.65 | C7: 64 | D7: 0.8 | E7: 51.2 | F7: 0.7 | G7: 44.8 | H7: 7 | I7: 1.95 | J7: 78 | K7: =J7*0.65 -> 50.7 | L7: 27.3 | M7: 0 | N7: 0.4265625 | O7: -32.85 | Q7: 0 | R7: -26.45 | T7: 0 | X7: ＸＸＸ 待定
B8: 减30 | C8: 64 | D8: 0.8 | E8: 51.2 | F8: 0.7 | G8: 44.8 | H8: 7 | I8: 1.95 | J8: 78 | K8: =30 -> 30 | L8: 48 | M8: 140400 | N8: 0.75 | O8: -12.15 | P8: 1800 | Q8: -21870 | R8: -5.75 | S8: 1800 | T8: -10350 | U8: 7 | V8: 1000 | W8: 7000
B9: 减20送试用装 | C9: 64 | D9: 0.8 | E9: 51.2 | F9: 0.7 | G9: 44.8 | H9: 7 | I9: 1.95 | J9: 78 | K9: =20+4*D9 -> 23.2 | L9: 54.8 | M9: 117000 | N9: 0.85625 | O9: -5.35 | P9: 1500 | Q9: -8025 | R9: 1.05 | S9: 1500 | T9: 1575 | U9: 8 | V9: 800
A10: 第二个月 | B10: 减20送试用装 | C10: 64 | D10: 0.8 | E10: 51.2 | F10: 0.7 | G10: 44.8 | H10: 7 | I10: 1.95 | J10: 78 | K10: =20+4*D10 -> 23.2 | L10: 54.8 | M10: 577200 | N10: 0.85625 | O10: -5.35 | P10: =8900-P9 -> 7400 | Q10: -39590 | R10: 1.05 | S10: =8900-S9 -> 7400 | T10: 7770 | U10: 30 | V10: 600 | W10: 18000 | X10: 日常
A11: 第三个月 | B11: 68减5送试用装 | C11: 64 | D11: 0.8 | E11: 51.2 | F11: 0.7 | G11: 44.8 | H11: 7 | I11: 1.7 | J11: 68 | K11: =5+4*D11 -> 8.2 | L11: 59.8 | M11: 408000 | N11: 0.934375 | O11: -0.1 | P11: 6000 | Q11: -600 | R11: 6.3 | S11: 6000 | T11: 37800 | U11: 20 | V11: 600 | W11: 12000 | X11: 日常活动
C12: 64 | D12: 0.8 | E12: 51.2 | F12: 0.7 | G12: 44.8 | H12: 7 | I12: 1.95 | J12: 78 | L12: 78 | M12: 0 | N12: 1.21875 | O12: 17.85 | Q12: 0 | R12: 24.25 | T12: 0 | X12: 活动参插1-2场
B13: 78减10 | C13: 64 | D13: 0.8 | E13: 51.2 | F13: 0.7 | G13: 44.8 | H13: 7 | I13: 1.95 | J13: 78 | K13: =10 -> 10 | L13: 68 | M13: 124800 | N13: 1.0625 | O13: 7.85 | P13: 1600 | Q13: 12560 | R13: 14.25 | S13: 1600 | T13: 22800 | U13: 10 | V13: 500 | W13: =U13*V13 -> 5000 | X13: 日常
A14: 第四个月 | B14: 78元减10 | C14: 64 | D14: 0.8 | E14: 51.2 | F14: 0.7 | G14: 44.8 | H14: 7 | I14: 1.95 | J14: 78 | K14: =4*D14 -> 3.2 | L14: 74.8 | M14: 202800 | N14: 1.16875 | O14: 14.65 | P14: 2600 | Q14: 38090 | R14: 21.05 | S14: 2600 | T14: 54730 | U14: 10 | V14: 500 | W14: 5000 | X14: 日常
C15: 64 | D15: 0.8 | E15: 51.2 | F15: 0.7 | G15: 44.8 | H15: 7 | I15: 1.95 | J15: 78 | L15: 78 | M15: 0 | N15: 1.21875 | O15: 17.85 | Q15: 0 | R15: 24.25 | T15: 0 | X15: 活动参插1-2场
B16: 68减5送试用装 | C16: 64 | D16: 0.8 | E16: 51.2 | F16: 0.7 | G16: 44.8 | H16: 7 | I16: 1.7 | J16: 68 | K16: =5+4*D16 -> 8.2 | L16: 59.8 | M16: 340000 | N16: 0.934375 | O16: -0.1 | P16: 5000 | Q16: -500 | R16: 6.3 | S16: 5000 | T16: 31500 | U16: 20 | V16: 600 | W16: 12000 | X16: 日常活动
A17: 第五个月 | B17: 78元减5送试用装 | C17: 64 | D17: 0.8 | E17: 51.2 | F17: 0.7 | G17: 44.8 | H17: 7 | I17: 1.95 | J17: 78 | K17: 8.2 | L17: 69.8 | M17: 390000 | N17: 1.090625 | O17: 9.65 | P17: 5000 | Q17: 48250 | R17: 16.05 | S17: 5000 | T17: 80250 | U17: 30 | V17: 400 | W17: 12000 | X17: 日常
C18: 64 | D18: 0.8 | E18: 51.2 | F18: 0.7 | G18: 44.8 | H18: 7 | I18: 1.95 | J18: 78 | L18: 78 | M18: 0 | N18: 1.21875 | O18: 17.85 | Q18: 0 | R18: 24.25 | T18: 0 | X18: 活动参插1-2场
A19: 第六个月 | B19: 78元减5送试用装 | C19: 64 | D19: 0.8 | E19: 51.2 | F19: 0.7 | G19: 44.8 | H19: 7 | I19: 1.95 | J19: 78 | K19: 8.2 | L19: 69.8 | M19: 780000 | N19: 1.090625 | O19: 9.65 | P19: 10000 | Q19: 96500 | R19: 16.05 | S19: 3500 | T19: 56175 | U19: 30 | V19: 400 | W19: =U19*V19 -> 12000 | X19: 日常
L20: 0 | M20: 0 | O20: 0 | Q20: 0 | R20: 0 | T20: 0 | X20: 活动参插1-2场
L21: 0 | M21: 0 | O21: 0 | Q21: 0 | R21: 0 | T21: 0
L22: 0 | M22: 0 | O22: 0 | Q22: 0 | R22: 0 | T22: 0
B23: 合计 | M23: =SUM(M4:M22) -> 3267400 | P23: 43300 | Q23: 74055 | S23: =SUM(S4:S22) -> 36800 | T23: 246850 | W23: 98000
B25: 利润比例 | Q25: =Q23/M23 -> 0.02266480994 | T25: =T23/M23 -> 0.07554936647
E27: 很多运营，都会告诉老板，我们要亏本营销，我们要长远营销。 有多少运营，有去真心的帮老板计算一下，要亏到几个月才能盈利？ 以上内容，是一个比较正常的方案，在执行过程中，做了微调！ 【并且，另有配套的销售方案一起使用！】 如果你够聪明，营销简案那一列，可以分析得出来一些味道，请根据自已的产品情况，去分析制作！ 并注意【理想成本】 此方案为15年9月版开始，最终的执行结果为：前期二个月亏损10W左右，后一个月回本，第四个月营利，并保持大词销量排位前5位！并维持至今，打开各种资源端口！

Sheet 部门人员工作总结
A1: 2016月6月6日 - 6月11日 | F1: 请每周五下午16点前，发送到各自的项目经理邮箱
A2: 职位 | B2: 姓名 | C2: 系号 | D2: 登记日期 | E2: 重点项目内容 | F2: 内容细节（越详细越好） | G2: 对应联络人 | H2: 开始时间 | I2: 预计完成时间 | J2: 实际完成时间 | K2: 完成进度 | L2: 自我改善区 | M2: 备注
A3: XXX负责人 | B3: XXX | C3: 1 | D3: 6月6 | E3: 淘抢购、淘金币、聚划算的活动报名 | F3: xxxxxxxxxxxxxxxxxxxxxxxxxxxxxxxxxxxxxxxx | G3: 小二/美工 | H3: 2016-04-11 | I3: 2016-04-16
F4: xxxxxxxxxxxxxxxxxxxxxxxxxxxxxxxxxxxxxxxx
F5: xxxxxxxxxxxxxxxxxxxxxxxxxxxxxxxxxxxxxxxx
F6: xxxxxxxxxxxxxxxxxxxxxxxxxxxxxxxxxxxxxxxx
F7: xxxxxxxxxxxxxxxxxxxxxxxxxxxxxxxxxxxxxxxx
F8: xxxxxxxxxxxxxxxxxxxxxxxxxxxxxxxxxxxxxxxx
C9: 2 | D9: 6月8 | E9: 旗舰店店铺宝贝主题的修改 | G9: 总监/美工 | H9: 2016-04-11 | I9: 2016-04-16
C10: 3 | D10: 6月9 | E10: ＸＸＸ的推广 | F10: 做详细的推广计划 | G10: 总监/小二/美工 | H10: 2016-04-11 | I10: 2016-04-16
C11: 4 | D11: 6月10 | E11: XXX的上新和推广 | F11: 做详细的推广计划 | G11: 总监/小二/美工 | H11: 2016-04-08 | I11: 2016-04-16
C12: 6 | D12: 6月11 | E12: 监督其他人员的工作 | G12: 总监/小二/美工 | H12: 2016-04-08 | I12: 2016-04-14
C16: 一个团队，时间管理是非常，非常重要！ 一个好的管理者，从上面的周工作总结，可以对比得出，谁在撒谎，谁在玩弄时间，谁没有认真做事情！ 往下衍生，自然有《下周工作计划》与上表一致！

Sheet 时间管理大事记事本
A1: 星期日 | B1: 星期一 | C1: 星期二 | D1: 星期三 | E1: 星期四 | F1: 星期五 | G1: 星期六
A2: 2016-02-28 | B2: 2016-02-29 | C2: 2016-03-01 | D2: 2016-03-02 | E2: 2016-03-03 | F2: 2016-03-04 | G2: 2016-03-05
A4: 2016-03-06 | B4: 2016-03-07 | C4: 2016-03-08 | D4: 2016-03-09 | E4: 2016-03-10 | F4: 2016-03-11 | G4: 2016-03-12
A6: 2016-03-13 | B6: 2016-03-14 | C6: 2016-03-15 | D6: 2016-03-16 | E6: 2016-03-17 | F6: 2016-03-18 | G6: 2016-03-19
A8: 2016-03-20 | B8: 2016-03-21 | C8: 2016-03-22 | D8: 2016-03-23 | E8: 2016-03-24 | F8: 2016-03-25 | G8: 2016-03-26
A10: 2016-03-27 | B10: 2016-03-28 | C10: 2016-03-29 | D10: 2016-03-30 | E10: 2016-03-31 | F10: 2016-04-01 | G10: 2016-04-02
B15: 再次强调，时间管理的重要性！ 懂得用上表的人，恭喜你！

Sheet 淘抢购方案
F6: 亲，别那么懒！ 认真的思考一下自已！ 了解活动的基本规则！ 了解活动平台的玩法！ 了解你们自已！！！ 别天天在群里叫：为什么我的产品过不了活动 为什么这么好的产品，小二都不审核！ 也别太相信那些天天说包过活动的！
